[Event "Club Ajedrez Silla 60 Years 2022"]
[Site "Silla"]
[Date "2022.05.10"]
[Round "4.3"]
[White "Salvador Lopez, Daniel"]
[Black "Petrov, Marian"]
[Result "0-1"]
[ECO "B06"]
[WhiteElo "2134"]
[BlackElo "2456"]
[Annotator "TA"]
[PlyCount "80"]
[EventDate "2022.05.09"]
[EventType "tourn"]
[EventCountry "ESP"]
[SourceTitle "playchess.com"]
[Source "ChessBase"]
[SourceQuality "1"]
[TimeControl "5400+30"]

{[%evp 12,80,37,30,37,31,44,65,60,55,72,69,68,38,14,19,51,32,57,56,60,57,70,49,69,47,58,27,31,21,29,23,29,25,31,31,26,25,35,0,0,0,33,24,22,15,20,0,0,0,0,0,0,-1,0,0,0,-13,0,0,0,0,0,0,0,0,0,-59,-57,-649,-609]} 1. d4 {[%emt 0:01:00]} g6 {[%emt 0:00:07]} 2. e4 {[%emt 0:00:11]} Bg7 {[%emt 0:00:06]} 3. Nc3 {[%emt 0:00:08]} d6 {[%emt 0:00:23]} 4. Nf3 {[%emt 0:00:19]} a6 {[%emt 0:00:39]} 5. a4 {[%emt 0:00:19]} Nc6 {[%emt 0:00:20]} 6. Be2 {[%emt 0:03:42]} Bg4 {[%emt 0:01:12]} 7. Be3 {[%emt 0:00:15]} e5 {[%emt 0:02:32] B06: Modern Defence.} 8. dxe5 {[%emt 0:01:52]} Bxf3 {[%emt 0:04:05]} 9. Bxf3 {[%emt 0:00:11] Strongly threatening exd6.} Nxe5 {[%emt 0:00:07] White is slightly better.} 10. Be2 {[%emt 0:00:48]} Ne7 {[%emt 0:00:28]} 11. O-O {[%emt 0:01:13]} O-O {[%emt 0:01:47] [#]} 12. Nd5 $146 {[%emt 0:03:36]} ({Predecessor:} 12. f4 Nd7 13. Bd4 Nc6 14. Bxg7 Kxg7 15. Qd2 Nf6 16. Rad1 Re8 17. Bf3 Qb8 18. g4 {1-0 (42) Belyakov,B (2495)-Dudin,G (2314) Sochi 2019}) 12... Nxd5 {[%emt 0:02:43]} 13. Qxd5 {[%emt 0:00:32]} Qe7 {[%emt 0:01:49]} 14. Rad1 {[%emt 0:02:16]} Nc6 {[%emt 0:06:30]} 15. c3 {[%emt 0:08:03]} Kh8 {[%emt 0:00:42]} 16. Bd3 {[%emt 0:07:22]} Qd7 {[%emt 0:03:21]} 17. Bc2 {[%emt 0:05:45]} Rae8 {[%emt 0:06:33]} 18. Bf4 {[%emt 0:01:18][%cal Be3f4,Bf4g3,Bg3f2,Bf2d4][%mdl 32]} Qe6 {[%emt 0:10:09]} 19. Bg3 {[%emt 0:02:01]} Qxd5 {[%emt 0:02:01]} 20. Rxd5 {[%emt 0:00:14]} f5 {[%emt 0:00:38]} 21. f3 {[%emt 0:06:27]} f4 {[%emt 0:07:40]} 22. Bf2 {[%emt 0:00:34]} Ne5 {[%emt 0:01:02]} 23. Bb3 {[%emt 0:05:51]} h5 {[%emt 0:08:04]} 24. Rfd1 {[%emt 0:02:49]} Kh7 {[%emt 0:04:39]} 25. Bd4 {[%emt 0:03:58]} Nc6 {[%emt 0:02:47]} 26. Bf2 {[%emt 0:00:18]} Bf6 {[%emt 0:02:26]} 27. R5d2 {[%emt 0:02:33]} g5 {[%emt 0:01:31]} 28. Bd5 {[%emt 0:02:06]} g4 {[%emt 0:00:18]} 29. Bxc6 {[%emt 0:02:43]} bxc6 {[%emt 0:00:03]} 30. Bd4 {[%emt 0:00:51]} Be5 {[%emt 0:08:03]} 31. Kf1 {[%emt 0:02:40]} Rg8 {[%emt 0:00:41]} 32. Ke2 {[%emt 0:02:23]} Kh6 {[%emt 0:01:27]} 33. Bxe5 {[%emt 0:02:50]} Rxe5 $11 {[%emt 0:00:06][%mdl 4096] Endgame KRR-KRR} 34. Rd4 {[%emt 0:00:38]} Reg5 {[%emt 0:02:05]} 35. R1d2 {[%emt 0:00:59]} h4 {[%emt 0:00:58]} 36. fxg4 {[%emt 0:13:04]} Rxg4 {[%emt 0:00:21]} 37. Kf3 {[%emt 0:00:35][%cal Oe4e5]} h3 {[%emt 0:00:37]} 38. gxh3 {[%emt 0:00:47]} Rh4 {[%emt 0:00:10]} 39. Rf2 {[%emt 0:04:14]} (39. R2d3 $11) 39... Rxh3+ $15 {[%emt 0:01:25]} 40. Kxf4 $2 {[%emt 0:02:56][%mdl 8192] [#]} (40. Ke2 $15) 40... Kh5 $1 {[%emt 0:19:55] Weighted Error Value: White=0.32/Black=0.07 (flawless)} ({Inferior is} 40... Rf8+ 41. Kg4 Rxf2 42. Kxh3 $11) 0-1

[Event "Club Ajedrez Silla 60 Years 2022"]
[Site "Silla"]
[Date "2022.05.11"]
[Round "5.1"]
[White "Petrov, Marian"]
[Black "Kotronias, Vasilios"]
[Result "0-1"]
[ECO "B31"]
[WhiteElo "2456"]
[BlackElo "2465"]
[Annotator "TA"]
[PlyCount "86"]
[EventDate "2022.05.09"]
[EventType "tourn"]
[EventCountry "ESP"]
[SourceTitle "playchess.com"]
[Source "ChessBase"]
[SourceQuality "1"]
[TimeControl "5400+30"]

{[%evp 17,86,0,0,0,9,17,13,13,14,10,0,0,9,0,0,0,0,0,12,8,32,24,33,20,32,12,13,10,21,-16,0,-39,-30,-48,-50,-62,-58,-103,-97,-102,-113,-104,-121,-169,-168,-292,-293,-292,-275,-824,-531,-470,-515,-529,-510,-502,-484,-327,-308,-706,-627,-623,-623,-581,-288,-633,-619,-1286,-1283,-29986,-29987]} 1. e4 {[%emt 0:00:13]} c5 {[%emt 0:03:05]} 2. Nf3 {[%emt 0:00:12]} Nc6 {[%emt 0:00:11]} 3. Bb5 {[%emt 0:00:32]} g6 {[%emt 0:00:09]} 4. O-O {[%emt 0:03:55]} Bg7 {[%emt 0:00:11]} 5. c3 {[%emt 0:01:09]} Nf6 {[%emt 0:00:12]} 6. Re1 {[%emt 0:00:05]} O-O {[%emt 0:00:10]} 7. d4 {[%emt 0:01:39]} d5 {[%emt 0:00:07]} 8. e5 {[%emt 0:00:47]} Ne4 {[%emt 0:00:05]} 9. Bxc6 {[%emt 0:00:30]} bxc6 {[%emt 0:00:04]} 10. Be3 {[%emt 0:00:33] is more profitable than 10.Nbd2 at the moment. B31: Sicilian: 2...Nc6 3 Bb5 g6.} Rb8 {[%emt 0:00:08]} 11. Qc1 {[%emt 0:00:54]} cxd4 {[%emt 0:00:04]} 12. cxd4 {[%emt 0:00:05] The position is equal.} Bf5 {[%emt 0:00:06]} 13. Nc3 {[%emt 0:00:58]} f6 {[%emt 0:00:07]} 14. exf6 {[%emt 0:11:39]} exf6 {[%emt 0:00:05] [#]} 15. Nd2 $146 {[%emt 0:00:09]} ({Predecessor:} 15. Bf4 Rc8 16. Na4 g5 17. Be3 Qe8 18. Nd2 Nxd2 19. Bxd2 Qf7 20. Bb4 Rfe8 21. Qc3 {½-½ (59) Vagman,R (2247)-Dubnevych,M (2065) Terme Catez 2022}) 15... Nd6 {[%emt 0:02:38]} 16. Na4 {[%emt 0:02:31]} Rc8 {[%emt 0:00:20]} 17. Bf4 {[%emt 0:06:12]} Nb5 {[%emt 0:00:18]} 18. Nb3 {[%emt 0:00:14]} g5 {[%emt 0:00:05]} 19. Bd2 {[%emt 0:00:38]} Qd7 {[%emt 0:04:47]} 20. Bb4 {[%emt 0:01:31]} (20. Nac5 $5 {[%cal Rc5d7]} Qf7 21. Bb4 $11) 20... Rfe8 {[%emt 0:00:16]} 21. Qd2 {[%emt 0:01:42]} Bg6 {[%emt 0:08:12]} 22. Rac1 {[%emt 0:03:17]} h5 {[%emt 0:00:43][%cal Bh7h5,Bh5h4,Bh4h3][%mdl 32]} 23. Nc3 {[%emt 0:03:33]} Nd6 {[%emt 0:04:40]} 24. Nc5 {[%emt 0:11:01]} (24. Bxd6 $5 Qxd6 25. Na4 $11) 24... Qf7 {[%emt 0:00:21][%cal Oa7a5] Threatens to win with ...a5!} 25. b3 {[%emt 0:01:17]} Nf5 {[%emt 0:00:09]} 26. Ne2 {[%emt 0:02:02]} h4 {[%emt 0:01:27]} 27. Rcd1 {[%emt 0:09:15] Black keeps a firm grip on the game.} h3 {[%emt 0:03:31] Strongly threatening ...Nh4.} 28. g3 {[%emt 0:00:07] Against Nh4} Bh5 {[%emt 0:00:31] aiming for ...Bxe2.} 29. Qd3 {[%emt 0:02:58]} Qg6 {[%emt 0:04:23] Black is more active.} 30. Kf1 {[%emt 0:04:47]} (30. Rc1 $17 {was called for.}) 30... Bf8 {[%emt 0:08:47]} 31. Rd2 {[%emt 0:01:47]} (31. a3 {was necessary.}) 31... Bxc5 $19 {[%emt 0:08:33]} 32. Bxc5 {[%emt 0:00:59]} Re4 {[%emt 0:00:06] And now ...Rce8 would win.} 33. Ng1 $2 {[%emt 0:03:00]} (33. Nc3 Rxe1+ 34. Kxe1) 33... Rce8 {[%emt 0:00:18][%csl Ge8][%cal Re4e1]} 34. Rxe4 {[%emt 0:00:39]} dxe4 {[%emt 0:00:38][%cal Bd5e4,Be4e3][%mdl 32]} (34... Rxe4 35. Qc3 $17) 35. Qc4+ {[%emt 0:00:36]} Kh7 {[%emt 0:02:08] ...e3 is the strong threat.} 36. d5 {[%emt 0:00:33]} e3 $1 {[%emt 0:01:04]} 37. Rb2 {[%emt 0:01:28] [#]} ({Don't go for} 37. fxe3 $2 Nxg3+ $1 {[%mdl 512]} 38. hxg3 Qb1+ 39. Kf2 h2) 37... Re4 {[%emt 0:22:49] Inhibits g4.} 38. Qa6 {[%emt 0:02:48]} (38. Qc1 exf2 39. Bxf2) 38... Qe8 {[%emt 0:00:26] White must now prevent ...Qe5.} 39. f3 {[%emt 0:16:29]} Re5 {[%emt 0:00:11]} 40. Qxa7+ {[%emt 0:01:11]} Bf7 {[%emt 0:02:40]} (40... Kg8 $142 41. b4 (41. g4 $2 Rxd5 42. gxf5 Rd1+ 43. Ke2 Rxg1 $19) 41... Rxd5) 41. dxc6 {[%emt 0:01:37]} (41. Nxh3 Rxd5 42. Nf2 exf2 43. Re2) 41... Kg6 {[%emt 0:02:06]} 42. Qb6 {[%emt 0:04:07]} Rd5 {[%emt 0:01:33] ( -> ...Qe5)} 43. g4 {[%emt 0:00:47] [#]} Ng3+ $1 {[%emt 0:01:35][%mdl 512] Weighted Error Value: White=0.84/Black=0.19 (very precise)} 0-1

[Event "Club Ajedrez Silla 60 Years 2022"]
[Site "Silla"]
[Date "2022.05.11"]
[Round "5.2"]
[White "Ilinca Ilinca, Felix Antonio"]
[Black "Salvador Lopez, Daniel"]
[Result "0-1"]
[ECO "B19"]
[WhiteElo "2165"]
[BlackElo "2134"]
[Annotator "TA"]
[PlyCount "94"]
[EventDate "2022.05.09"]
[EventType "tourn"]
[EventCountry "ESP"]
[SourceTitle "playchess.com"]
[Source "ChessBase"]
[SourceQuality "1"]
[TimeControl "5400+30"]

{[%evp 30,94,32,33,36,36,40,36,73,70,83,60,63,61,81,76,61,66,93,50,72,42,83,27,29,0,0,0,0,0,231,216,209,202,225,172,203,0,0,-333,-322,-691,-413,-1725,-691,-676,-682,-680,-667,-653,-570,-638,-634,-1140,-700,-1504,-646,-29988,-29985,-29985,-29986,-29990,-29991,-29991,-12838,-12835,-514]} 1. e4 {[%emt 0:00:03]} c6 {[%emt 0:00:13]} 2. d4 {[%emt 0:00:58]} d5 {[%emt 0:00:09]} 3. Nc3 {[%emt 0:00:14]} dxe4 {[%emt 0:00:06]} 4. Nxe4 {[%emt 0:00:07]} Bf5 {[%emt 0:00:06]} 5. Ng3 {[%emt 0:00:39]} Bg6 {[%emt 0:00:07]} 6. h4 {[%emt 0:00:31][%cal Bh2h4,Bh4h5][%mdl 32]} h6 {[%emt 0:00:09]} 7. Nf3 {[%emt 0:00:10]} Nd7 {[%emt 0:00:08]} 8. h5 {[%emt 0:00:20]} Bh7 {[%emt 0:00:07]} 9. Bd3 {[%emt 0:00:09]} Bxd3 {[%emt 0:00:08]} 10. Qxd3 {[%emt 0:00:07]} e6 {[%emt 0:00:07]} 11. Bf4 {[%emt 0:00:58]} Qa5+ {[%emt 0:00:13]} 12. Bd2 {[%emt 0:00:48]} Qc7 {[%emt 0:01:39]} 13. O-O-O {[%emt 0:00:40]} Ngf6 {[%emt 0:00:26]} 14. Kb1 {[%emt 0:01:20]} O-O-O {[%emt 0:00:48]} 15. Ne4 {[%emt 1:30:56]} Nxe4 {[%emt 0:04:15]} 16. Qxe4 {[%emt 0:00:00]} Kb8 {[%emt 0:01:54] B19: Classical Caro-Kann: 4...Bf5 main line.} 17. c4 {[%emt 0:00:00]} Ka8 {[%emt 0:01:36]} 18. Bc3 {[%emt 0:00:00]} Nf6 {[%emt 0:04:22] White is slightly better.} 19. Qe2 {[%emt 0:00:00]} c5 {[%emt 0:03:50]} 20. d5 {[%emt 0:00:00]} exd5 {[%emt 0:01:29]} 21. Bxf6 {[%emt 0:00:00]} gxf6 {[%emt 0:00:06] [#]} 22. Rxd5 $146 {[%emt 0:00:00]} ({Predecessor:} 22. cxd5 Bd6 23. Rhe1 Rc8 24. Qc4 Qd7 25. Nd2 b5 26. Qc2 c4 27. Ne4 f5 28. Nxd6 Qxd6 29. Qxf5 {1-0 (38) Szostko,J (2162)-Winiarski,M (2113) Karpacz 2015}) 22... Rxd5 {[%emt 0:00:09]} 23. cxd5 {[%emt 0:00:00]} Bd6 {[%emt 0:00:43][%cal Bf8d6,Bd6e5,Be5d4][%mdl 32]} 24. Re1 {[%emt 0:00:00]} a6 {[%emt 0:00:40]} 25. Nh4 {[%emt 0:00:00]} Be5 {[%emt 0:04:27]} 26. g4 {[%emt 0:00:00]} (26. Rd1 $16) 26... Rd8 $11 {[%emt 0:05:56]} 27. Qc4 {[%emt 0:00:00] Strongly threatening Nf5.} Bd4 $1 {[%emt 0:06:17]} 28. Nf5 {[%emt 0:00:00][%csl LRd4,LRh6]} Qf4 $40 {[%emt 0:09:43][%mdl 128] Black mounts an attack.} 29. d6 {[%emt 0:00:00] [#] And now f3 would win.} (29. Nxd4 cxd4 30. Rd1 Qe4+ 31. Qd3 Qxd5 $15) 29... Qd2 $2 {[%emt 0:28:42]} (29... Qxg4 $11 30. Nxd4 Qxd4 31. Qxd4 cxd4) 30. Qe2 $18 {[%emt 0:00:00]} Qb4 {[%emt 0:00:36][%cal Od4b2] ...Bxb2! is the strong threat.} 31. Rd1 {[%emt 0:00:00]} ({But not} 31. Nxh6 $2 {[#]} Bxb2 $1 {[%mdl 512]} 32. Qxb2 Qxe1+ 33. Qc1 Qb4+ 34. Qb2 Qe4+ 35. Qc2 Qb4+ 36. Qb2 Qf4 $19) 31... Ka7 {[%emt 0:07:12]} 32. Rd2 {[%emt 0:00:00]} ({Much less strong is} 32. Nxh6 Rxd6 33. a3 (33. Nxf7 $2 Rb6 $19) 33... Qb3 $16) 32... Be5 {[%emt 0:04:42]} 33. Nxh6 $2 {[%emt 0:00:00]} (33. f3 $18) 33... Bf4 $11 {[%emt 0:03:19]} 34. Rd1 {[%emt 0:05:17][%mdl 8192]} Bxh6 $19 {[%emt 0:00:26]} 35. Qe7 $2 {[%emt 0:00:10]} (35. a3 Qa4 36. Qf3) 35... Qa4 {[%emt 0:02:16][%cal Ra4d1]} 36. Rd3 {[%emt 0:01:08]} (36. Qe2 $142 Qf4 37. Qe3) 36... Qc4 {[%emt 0:04:24]} (36... Re8 $142 37. a3 Rxe7 38. dxe7 Qe4) 37. Rd1 {[%emt 0:00:36]} Qxg4 {[%emt 0:00:21][%cal Rg4d1]} 38. Re1 {[%emt 0:00:16]} Qf5+ {[%emt 0:00:38]} 39. Ka1 {[%emt 0:00:23]} Qd7 {[%emt 0:01:44]} 40. Qxf6 {[%emt 0:00:36]} Qxd6 {[%emt 0:00:07]} 41. Qf3 {[%emt 0:00:12] Inhibits Qd1+.} Qd5 {[%emt 0:01:05]} 42. Qe2 {[%emt 0:00:12]} Qd2 {[%emt 0:00:23]} 43. Qf1 {[%emt 0:00:06]} Bg7 {[%emt 0:00:17][%csl Gg7][%cal Rd2b2]} 44. Rb1 {[%emt 0:00:05]} Qc2 {[%emt 0:01:05]} 45. Qc1 {[%emt 0:01:16]} Qxf2 {[%emt 0:00:24]} 46. h6 {[%emt 0:00:14]} Bd4 {[%emt 0:00:21]} (46... Bf6 $142 47. a3 Rd2 48. h7 Rc2 49. Qf1 Bxb2+ 50. Ka2 Bg7+ 51. Kb3 Rc3+ 52. Ka4 Qc2+ 53. Rb3 Qxb3+ 54. Ka5 Qxa3#) 47. a3 {[%emt 0:00:19]} Qe3 {[%emt 0:01:23] Weighted Error Value: White=1.22/Black=0.74} (47... Qf3 $142 {[%cal Rf3a3]} 48. Qc4 Rh8) 0-1

[Event "Club Ajedrez Silla 60 Years 2022"]
[Site "Silla"]
[Date "2022.05.11"]
[Round "5.3"]
[White "Granero Roca, Antonio"]
[Black "Krasteva, Beloslava"]
[Result "1-0"]
[ECO "A35"]
[WhiteElo "2340"]
[BlackElo "2268"]
[Annotator "TA"]
[PlyCount "61"]
[EventDate "2022.05.09"]
[EventType "tourn"]
[EventCountry "ESP"]
[SourceTitle "playchess.com"]
[Source "ChessBase"]
[SourceQuality "1"]
[TimeControl "5400+30"]

{[%evp 22,61,33,32,33,7,2,0,0,0,50,-24,40,12,36,25,31,27,25,13,186,126,106,97,652,440,588,638,576,556,1257,1252,1564,1501,6316,6308,5330,5310,29991,29991,29997,29998]} 1. Nf3 {[%emt 0:00:08]} c5 {[%emt 0:00:18]} 2. c4 {[%emt 0:00:33]} Nc6 {[%emt 0:00:06]} 3. e3 {[%emt 0:00:43]} Nf6 {[%emt 0:02:29]} 4. Nc3 {[%emt 0:02:08]} g6 {[%emt 0:01:50]} 5. d4 {[%emt 0:01:14]} cxd4 {[%emt 0:00:07]} 6. exd4 {[%emt 0:00:06]} d5 {[%emt 0:00:05]} 7. cxd5 {[%emt 0:00:22]} Nxd5 {[%emt 0:00:15]} 8. Qb3 {[%emt 0:00:08]} Nxc3 {[%emt 0:00:24]} 9. Bc4 {[%emt 0:00:37]} Nd5 {[%emt 0:00:42]} 10. Bxd5 {[%emt 0:00:07]} e6 {[%emt 0:00:04]} 11. Bxc6+ {[%emt 0:00:11]} bxc6 {[%emt 0:00:04]} 12. O-O {[%emt 0:00:45]} Qd5 {[%emt 0:01:24] A35: Symmetrical English: 2 Nc3 Nc6 3 Nf3.} 13. Bf4 {[%emt 0:02:40] 13.Qe3 is becoming the main line.} f6 {[%emt 0:03:18]} 14. Rfc1 {[%emt 0:05:19]} g5 {[%emt 0:02:09] The position is equal.} 15. Bg3 {[%emt 0:05:34] [#]} Kf7 $146 {[%emt 0:10:04]} (15... Qxb3 $11 16. axb3 g4) ({Predecessor:} 15... h5 16. h4 gxh4 17. Qxd5 cxd5 18. Bxh4 Be7 19. Rc7 Bd8 20. Rc3 Rg8 21. Rac1 Bd7 {0-1 (36) Ruck,R (2579)-Bologan,V (2665) Warsaw 2011}) 16. Rc3 {[%emt 0:09:47]} (16. Qxd5 $14 cxd5 17. h4) 16... h5 {[%emt 0:05:47]} (16... Qxb3 $1 $11 17. Rxb3 Be7) 17. h4 {[%emt 0:03:25]} (17. Qc2 $5 {[%cal Rf3e5]} Be7 18. h4 $14 (18. Rxc6 h4 $11)) 17... g4 {[%emt 0:05:05] [#] And now ...Qxb3 would win.} 18. Nd2 {[%emt 0:02:30]} Be7 {[%emt 0:04:44]} 19. Nc4 {[%emt 0:04:44]} Rd8 {[%emt 0:04:43]} 20. Qc2 {[%emt 0:06:06]} Kg7 {[%emt 0:02:33] [#] Inhibits Qh7+.} (20... Qf5 $1 $11 {and Black has nothing to worry.}) 21. Ne3 {[%emt 0:02:57]} (21. Re1 $1 $18) 21... Qxd4 $16 {[%emt 0:02:33]} 22. Rd1 $36 {[%emt 0:12:33][%mdl 2048] White has strong initiative. White is more active.} ({Much weaker is} 22. Rxc6 $6 Qd3 $11) 22... Qb4 {[%emt 0:03:11][%mdl 8192]} (22... Qb6 $16) 23. Rxc6 {[%emt 0:04:26]} Rxd1+ {[%emt 0:04:19]} 24. Qxd1 {[%emt 0:01:06]} Kf8 {[%emt 0:07:42]} 25. Rc7 {[%emt 0:03:52] Black must now prevent a3.} f5 {[%emt 0:15:34]} 26. a3 {[%emt 0:01:13]} Qb6 {[%emt 0:02:48]} 27. Nc4 {[%emt 0:00:31]} Qa6 {[%emt 0:01:12]} 28. Qd4 {[%emt 0:05:21] Qh8+ would kill now.} e5 {[%emt 0:02:10]} 29. Bxe5 {[%emt 0:04:43] White wants to mate with Bd6.} Be6 {[%emt 0:02:25]} 30. Bd6 {[%emt 0:00:41]} Bxd6 {[%emt 0:02:21]} 31. Qf6+ {[%emt 0:00:14] Weighted Error Value: White=0.37/Black=1.19} ({Inferior is} 31. Qxd6+ Qxd6 32. Nxd6 Rd8 $14) 1-0

[Event "Club Ajedrez Silla 60 Years 2022"]
[Site "Silla"]
[Date "2022.05.11"]
[Round "6.1"]
[White "Kotronias, Vasilios"]
[Black "Krasteva, Beloslava"]
[Result "1/2-1/2"]
[ECO "B48"]
[WhiteElo "2465"]
[BlackElo "2268"]
[Annotator "TA"]
[PlyCount "142"]
[EventDate "2022.05.09"]
[EventType "tourn"]
[EventCountry "ESP"]
[SourceTitle "playchess.com"]
[Source "ChessBase"]
[SourceQuality "1"]
[TimeControl "5400+30"]

{[%evp 11,142,37,37,0,0,11,1,0,0,0,0,-43,0,0,0,0,0,0,0,0,0,0,-6,0,-8,-8,20,-20,54,0,0,0,0,0,0,0,0,0,0,0,0,0,51,0,0,0,0,-95,-98,-109,-106,-164,-98,-298,-305,-350,-329,-325,-337,-328,-274,-281,-267,-269,-268,-340,-333,-369,-344,-387,-440,-424,-423,-369,-360,-364,-329,-522,-483,-460,-321,-287,-202,-192,-137,-182,-175,-670,-599,-354,0,0,0,0,0,0,0,0,0,0,0,0,0,-78,0,0,0,0,0,0,0,0,0,0,0,0,0,0,0,0,0,0,0,0,0,0,0,0,0,0,0,0,0]} 1. e4 {[%emt 0:02:12]} c5 {[%emt 0:01:09]} 2. Nf3 {[%emt 0:00:51]} e6 {[%emt 0:00:26]} 3. d4 {[%emt 0:00:10]} cxd4 {[%emt 0:00:06]} 4. Nxd4 {[%emt 0:00:03]} Nc6 {[%emt 0:00:06]} 5. Nc3 {[%emt 0:00:03]} Qc7 {[%emt 0:00:05]} 6. Be3 {[%emt 0:00:16]} a6 {[%emt 0:00:16]} 7. g4 {[%emt 0:00:20] B48: Sicilian: Taimanov: 5 Nc3 Qc7 6 Be3 a6 without Be2.} b5 {[%emt 0:00:33][%cal Bb7b5,Bb5b4][%mdl 32]} 8. Nxc6 {[%emt 0:00:22]} Qxc6 {[%emt 0:00:06]} 9. Qd2 {[%emt 0:00:24]} b4 {[%emt 0:00:12]} 10. Ne2 {[%emt 0:00:07]} Qxe4 {[%emt 0:00:08]} 11. Rg1 {[%emt 0:00:05] Strongly threatening Bg2.} Qc4 {[%emt 0:00:26]} 12. Nf4 {[%emt 0:00:19]} Qc7 {[%emt 0:00:34]} 13. O-O-O {[%emt 0:00:39]} Nf6 {[%emt 0:00:54]} 14. Nh5 {[%emt 0:01:36] [#]} Nxh5 $146 {[%emt 0:00:31]} (14... Qxh2 $2 15. Bg2 Nxg4 16. Bxa8 Nxe3 17. fxe3 (17. Nxg7+ Bxg7 18. fxe3 Qxd2+ 19. Rxd2 Bh6 $11) 17... Qxd2+ 18. Kxd2 $18) ({Predecessor:} 14... Bb7 15. Bf4 Qc6 16. Bg2 d5 17. Nxf6+ gxf6 18. g5 Bg7 19. Qxb4 Rc8 20. Rd2 Qb5 {1-0 (53) Fedoseev,V (2704)-Pichot,A (2625) Europe Echecs INT 2022}) 15. gxh5 {[%emt 0:00:05]} Bb7 {[%emt 0:00:27]} (15... Qxh2 $2 16. Bg2 Qb8 17. Bf4 $18 (17. Bxa8 Qxa8 18. h6 g6 $16)) 16. Bb6 {[%emt 0:03:39]} Qc6 {[%emt 0:00:48]} 17. Bd4 {[%emt 0:01:48] Threatens to win with h6.} Rg8 $1 {[%emt 0:03:47]} 18. Kb1 {[%emt 0:32:33]} Qd5 {[%emt 0:07:28]} 19. Rg5 {[%emt 0:14:57][%mdl 1024] White has compensation.} Qc6 {[%emt 0:14:46] [#]} (19... Qd6 $11) 20. Rg3 {[%emt 0:02:01]} ({Better is} 20. Bf6 $1 $14) 20... f5 {[%emt 0:21:35]} 21. Rd3 {[%emt 0:02:41]} Qc7 {[%emt 0:13:00] Inhibits Be5.} 22. f4 {[%emt 0:00:04]} Bc6 {[%emt 0:09:30]} 23. Be5 {[%emt 0:09:19]} Qc8 {[%emt 0:01:23]} 24. Bg2 {[%emt 0:04:05]} Bxg2 {[%emt 0:02:49]} 25. Qxg2 {[%emt 0:00:04]} Ra7 {[%emt 0:01:42]} 26. Qd2 {[%emt 0:13:16]} d5 {[%emt 0:01:17]} (26... a5 $11) 27. c3 {[%emt 0:02:23]} (27. Rg3 $14) 27... a5 $11 {[%emt 0:04:05]} 28. Rc1 {[%emt 0:00:11]} Qa6 {[%emt 0:03:03]} 29. c4 {[%emt 0:03:30]} (29. Rg3 $11) 29... dxc4 $17 {[%emt 0:00:57]} 30. Rd8+ {[%emt 0:00:07]} Kf7 {[%emt 0:00:28]} 31. h6 {[%emt 0:04:31]} (31. Qe2 $17 {was called for.}) 31... g6 {[%emt 0:02:24]} (31... c3 $19 32. Qd1 g6 33. bxc3 Be7 34. Rxg8 (34. Rd7 $2 Rxd7 35. Qxd7 Rd8 $19) 34... Kxg8) 32. Bd4 $2 {[%emt 0:00:06]} (32. Qe2 $17 {keeps fighting.}) 32... Rb7 $19 {[%emt 0:01:19]} 33. Qe2 {[%emt 0:02:54] Intending Qe5 and mate.} Bxh6 {[%emt 0:02:09]} 34. Rxg8 {[%emt 0:00:54]} Kxg8 {[%emt 0:00:01]} 35. Be5 {[%emt 0:00:22]} Bf8 {[%emt 0:01:10][%cal Bh6f8,Bf8g7,Bg7c3][%mdl 32]} 36. Qxc4 {[%emt 0:00:43]} Qxc4 {[%emt 0:00:33]} 37. Rxc4 {[%emt 0:00:09][%mdl 4096] Endgame KRB-KRB} Bg7 {[%emt 0:02:53] aiming for ...Bxe5.} 38. Rc5 {[%emt 0:01:01]} a4 {[%emt 0:00:53]} ({But not} 38... Bxe5 $2 39. Rxe5 Rd7 40. Rxa5 $19) 39. Bc7 {[%emt 0:00:17]} Kf7 {[%emt 0:01:11]} 40. b3 {[%emt 0:00:06]} axb3 {[%emt 0:01:05]} 41. axb3 {[%emt 0:00:01]} Bc3 {[%emt 0:00:45]} 42. Kc2 {[%emt 0:00:07]} Ra7 {[%emt 0:00:41]} 43. Kd3 {[%emt 0:01:15]} Ra2 {[%emt 0:00:24]} 44. Kc4 {[%emt 0:00:37]} (44. h4 {was necessary.}) 44... Rxh2 {[%emt 0:01:49]} 45. Bd6 {[%emt 0:00:10]} Rd2 {[%emt 0:00:53]} 46. Rc7+ {[%emt 0:00:04]} Ke8 {[%emt 0:00:26]} 47. Re7+ {[%emt 0:01:15]} Kd8 {[%emt 0:00:13]} (47... Kf8 $19 48. Rxe6+ Kf7 49. Re7+ Kf6) 48. Kc5 $17 {[%emt 0:00:32]} Bd4+ $1 {[%emt 0:02:04]} 49. Kc6 $2 {[%emt 0:01:06]} (49. Kb5) 49... Rc2+ $19 {[%emt 0:00:07]} 50. Kb5 {[%emt 0:00:16] [#]} Rc3 $2 {[%emt 0:01:07]} (50... Bc5 $1 $19 {[%mdl 512]} 51. Rc7 Bxd6 $1 52. Rxc2 Bxf4) 51. Rxh7 $11 {[%emt 0:00:23]} Bf6 {[%emt 0:00:41]} (51... Rxb3 $2 52. Kc4 Rb1 53. Kxd4 $16) 52. Rf7 {[%emt 0:00:32]} Bh4 {[%emt 0:00:28]} 53. Kxb4 {[%emt 0:00:21]} Rf3 {[%emt 0:00:19]} 54. Kc4 {[%emt 0:00:31]} Bg3 {[%emt 0:00:16]} 55. Kc5 {[%emt 0:01:05] Black must now prevent Kc6.} Bxf4 {[%emt 0:00:25]} 56. Bxf4 {[%emt 0:00:05]} Rxf4 {[%emt 0:00:05] KR-KR} 57. Kd6 {[%emt 0:00:02] [#]} (57. Rg7 $11) 57... Rd4+ {[%emt 0:00:40]} ({Black should play} 57... Ke8 $1 $17 {[%cal Re8f7]} 58. Kxe6 Rb4) 58. Kxe6 {[%emt 0:00:05] The position is equal.} Rb4 {[%emt 0:00:37]} 59. Kf6 {[%emt 0:01:18]} Rg4 {[%emt 0:00:38]} 60. b4 {[%emt 0:00:29][%cal Bb3b4,Bb4b5,Bb5b6][%mdl 32]} Kc8 {[%emt 0:00:43]} 61. b5 {[%emt 0:00:07]} Kb8 {[%emt 0:00:22]} 62. b6 {[%emt 0:00:20]} f4 {[%emt 0:00:39]} 63. Ke5 {[%emt 0:00:05]} g5 {[%emt 0:00:10]} 64. Kd6 $1 {[%emt 0:00:38]} Rg1 {[%emt 0:00:28]} 65. Kc6 {[%emt 0:00:11][%cal Rf7f8]} Rc1+ {[%emt 0:00:07]} 66. Kb5 {[%emt 0:00:06]} Rb1+ {[%emt 0:01:26]} 67. Kc6 {[%emt 0:00:08][%cal Rf7f8]} Rc1+ {[%emt 0:00:03]} 68. Kb5 {[%emt 0:00:03]} Rc3 {[%emt 0:00:37]} 69. Rg7 {[%emt 0:02:12]} Rg3 {[%emt 0:00:53]} 70. Kc6 {[%emt 0:00:39][%cal Rg7g8]} Rc3+ {[%emt 0:00:06]} 71. Kb5 $1 {[%emt 0:00:03]} Rg3 {[%emt 0:00:13] White happily takes the draw.  Weighted Error Value: White=0.31/Black=0.20 (precise)} 1/2-1/2